[Event "1st Bella Italia International 2022"]
[Site "Lignano"]
[Date "2022.08.20"]
[Round "5.13"]
[White "Titze, Leo"]
[Black "Cino, Giuseppe Adalberto"]
[Result "1/2-1/2"]
[ECO "C44"]
[WhiteElo "2071"]
[BlackElo "1976"]
[Annotator "NA RC"]
[PlyCount "131"]
[EventDate "2022.08.18"]
[EventCountry "ITA"]
[SourceTitle "playchess.com"]
[Source "ChessBase"]
[SourceQuality "1"]
[TimeControl "5400+30"]

1. e4 {[%emt 0:10:27]} e5 {[%emt 0:01:02]} 2. Nf3 {[%emt 0:00:35]} Nc6 {[%emt 0:00:18]} 3. d3 {[%emt 0:00:27]} Nge7 {[%emt 0:02:43]} 4. g3 {[%emt 0:00:29]} g6 {[%emt 0:00:20]} 5. Bg2 {[%emt 0:01:08]} Bg7 {[%emt 0:00:06]} 6. O-O {[%emt 0:00:10]} O-O {[%emt 0:00:05]} 7. c3 {[%emt 0:00:22]} d5 {[%emt 0:00:54]} 8. Qe2 {[%emt 0:03:12]} h6 {[%emt 0:02:18]} 9. Nbd2 {[%emt 0:02:06]} Kh7 {[%emt 0:03:04]} 10. Rd1 {[%emt 0:02:47]} d4 {[%emt 0:05:43]} 11. h4 {[%emt 0:04:42]} Be6 {[%emt 0:08:31]} 12. Nf1 {[%emt 0:02:16]} Qd7 {[%emt 0:00:34]} 13. N1h2 {[%emt 0:01:10]} a5 {[%emt 0:01:57]} 14. Ne1 {[%emt 0:02:48]} f5 {[%emt 0:08:55]} 15. c4 {[%emt 0:02:14]} f4 {[%emt 0:03:03]} 16. Bf3 {[%emt 0:03:02]} g5 {[%emt 0:03:01]} 17. h5 {[%emt 0:04:23]} b6 {[%emt 0:01:36]} 18. Bg4 {[%emt 0:00:55]} Bxg4 {[%emt 0:03:46]} 19. Qxg4 {[%emt 0:00:17]} Nb8 {[%emt 0:00:51]} 20. Bd2 {[%emt 0:02:08]} c5 {[%emt 0:02:24]} 21. b3 {[%emt 0:01:39]} Nec6 {[%emt 0:02:23]} 22. a3 {[%emt 0:00:44]} Qxg4 {[%emt 0:03:40]} 23. Nxg4 {[%emt 0:00:06]} Nd7 {[%emt 0:00:10]} 24. Kg2 {[%emt 0:01:15]} Nf6 {[%emt 0:01:26]} 25. Nxf6+ {[%emt 0:00:08]} Bxf6 {[%emt 0:00:09]} 26. g4 {[%emt 0:00:14]} Be7 {[%emt 0:00:22]} 27. Nc2 {[%emt 0:00:36]} Rfb8 {[%emt 0:00:44]} 28. Rdb1 {[%emt 0:01:09]} Kg7 {[%emt 0:06:18]} 29. Rb2 {[%emt 0:03:37]} Kf7 {[%emt 0:03:08]} 30. Rab1 {[%emt 0:00:25]} Ke6 {[%emt 0:04:34]} 31. b4 {[%emt 0:04:23]} axb4 {[%emt 0:00:23]} 32. axb4 {[%emt 0:00:02]} Kd7 {[%emt 0:01:04]} 33. bxc5 {[%emt 0:01:00]} bxc5 {[%emt 0:00:24]} 34. Rb5 {[%emt 0:05:17]} Bd6 {[%emt 0:03:14]} 35. R1b2 {[%emt 0:01:10]} Kc8 {[%emt 0:06:40]} 36. Kf3 {[%emt 0:02:13]} Na7 {[%emt 0:04:42]} 37. Rb6 {[%emt 0:02:04]} Bc7 {[%emt 0:00:13]} 38. Rxb8+ {[%emt 0:02:23]} Rxb8 {[%emt 0:00:03]} 39. Ra2 {[%emt 0:00:06]} Nc6 {[%emt 0:00:28]} 40. Ke2 {[%emt 0:01:45]} Rb3 {[%emt 0:00:19]} 41. f3 {[%emt 0:00:24]} Kb7 {[%emt 0:00:58]} 42. Na3 {[%emt 0:01:06]} Na7 {[%emt 0:02:00]} 43. Nc2 {[%emt 0:00:20]} Nc6 {[%emt 0:00:42]} 44. Ne1 {[%emt 0:00:20]} Rb1 {[%emt 0:01:22]} 45. Ra3 {[%emt 0:02:05]} Bb6 {[%emt 0:01:12]} 46. Nc2 {[%emt 0:00:45]} Nb4 {[%emt 0:04:18]} 47. Nxb4 {[%emt 0:04:20]} cxb4 {[%emt 0:00:05]} 48. Ra4 {[%emt 0:00:14]} b3 {[%emt 0:00:28]} 49. Rb4 {[%emt 0:00:19]} Kc6 {[%emt 0:00:31]} 50. Rb5 {[%emt 0:01:12]} Bc5 {[%emt 0:05:01]} 51. Bb4 {[%emt 0:02:09]} Bxb4 {[%emt 0:04:41]} 52. Rxb4 {[%emt 0:00:04]} b2 {[%emt 0:00:05]} 53. Kd2 {[%emt 0:00:07]} Rf1 {[%emt 0:00:09]} 54. Rxb2 {[%emt 0:00:05]} Rf2+ {[%emt 0:00:07]} 55. Kc1 {[%emt 0:00:03]} Rxf3 {[%emt 0:00:07]} 56. Rb5 {[%emt 0:00:41]} Rxd3 {[%emt 0:00:40]} 57. Rxe5 {[%emt 0:00:06]} Rg3 {[%emt 0:00:11]} 58. Kd2 {[%emt 0:01:46]} Rxg4 {[%emt 0:00:57]} 59. Rf5 {[%emt 0:02:22]} Rg3 {[%emt 0:02:33]} 60. e5 {[%emt 0:00:32]} Re3 {[%emt 0:00:15]} 61. Rf6+ {[%emt 0:00:48]} Kd7 {[%emt 0:01:00]} 62. Rxh6 {[%emt 0:01:00]} Rxe5 {[%emt 0:00:10]} 63. Rg6 {[%emt 0:00:44]} f3 {[%emt 0:01:08]} 64. h6 {[%emt 0:00:53]} Re2+ {[%emt 0:00:57]} 65. Kd1 {[%emt 0:01:31]} Rh2 {[%emt 0:00:53]} 66. Rxg5 {[%emt 0:01:31]} 1/2-1/2

[Event "1st Bella Italia International 2022"]
[Site "Lignano"]
[Date "2022.08.20"]
[Round "5.14"]
[White "Haller, Quentin"]
[Black "Della Pietra, Andrea"]
[Result "0-1"]
[ECO "A45"]
[WhiteElo "1995"]
[BlackElo "2172"]
[Annotator "TA"]
[PlyCount "130"]
[EventDate "2022.08.18"]
[EventCountry "ITA"]
[SourceTitle "playchess.com"]
[Source "ChessBase"]
[SourceQuality "1"]
[TimeControl "5400+30"]

{[%evp 10,130,20,22,29,33,34,20,37,7,17,17,35,29,111,22,25,22,42,-22,-37,-28,-41,-44,58,-38,-45,-141,-149,-139,-16,-19,-15,-5,-11,-9,0,0,-17,-27,0,-45,-43,-44,-43,-43,-14,-14,-14,-14,-14,-14,-14,-14,0,-29,0,0,0,-2,-8,-79,-79,-90,-84,-131,-126,-150,-147,-139,-134,-125,-93,-115,-114,-385,-384,-370,-372,-615,-599,-610,-472,-453,-427,-559,-379,-372,-335,-268,-260,-376,-350,-625,-599,-577,-570,-519,0,-510,-455,-586,-570,-570,-570,-416,-393,-570,-570,-559,-544,-542,-537,-29956,-8,-8,-8,-29976,-29977,-29977,-29978,-29980,-29980]} 1. d4 {[%emt 0:00:04]} Nf6 {[%emt 0:00:14]} 2. Bg5 {[%emt 0:00:07]} c5 {[%emt 0:01:54]} 3. Bxf6 {[%emt 0:00:15]} gxf6 {[%emt 0:00:21]} 4. d5 {[%emt 0:00:09]} Qb6 {[%emt 0:01:31]} 5. Qc1 {[%emt 0:00:08]} Bh6 {[%emt 0:03:12]} 6. e3 $1 {[%emt 0:00:44]} ({Don't go for} 6. Qxh6 $2 Qxb2 7. e4 Qxa1 $19) 6... d6 {[%emt 0:02:29] A45: Trompowsky Attack.} 7. c4 {[%emt 0:02:55]} f5 {[%emt 0:06:21]} 8. Nf3 {[%emt 0:07:48] [#]} e5 $146 {[%emt 0:22:18] The position is equal.} ({Predecessor:} 8... Nd7 9. Nc3 Rg8 10. Qc2 Ne5 11. Nxe5 dxe5 12. O-O-O Bd7 13. d6 e6 14. Qe2 O-O-O {0-1 (36) Kane,R (1864)-Quinn,J (2143) Uxbridge 2010}) 9. dxe6 {[%emt 0:01:36]} fxe6 {[%emt 0:00:07]} 10. Nc3 {[%emt 0:01:37]} O-O {[%emt 0:02:26]} 11. Qd2 {[%emt 0:06:08]} f4 {[%emt 0:14:41]} (11... Bd7 $11) 12. e4 {[%emt 0:02:36]} (12. O-O-O $16) 12... Nc6 $11 {[%emt 0:01:40]} 13. O-O-O {[%emt 0:02:37]} Bg7 {[%emt 0:00:47]} 14. Nb5 {[%emt 0:07:38]} (14. Qxd6 $14 Bxc3 15. bxc3) 14... a6 {[%emt 0:04:03]} 15. Nxd6 {[%emt 0:06:21]} Rd8 {[%emt 0:04:51][%cal Od8d6] Threatens to win with ...Rxd6!} 16. b3 {[%emt 0:04:05]} Nd4 {[%emt 0:05:34]} (16... a5 $15 17. Qxf4 Rf8) 17. Nxc8 {[%emt 0:03:02]} (17. e5 $1 $14) 17... Raxc8 $15 {[%emt 0:00:26]} 18. Nxd4 {[%emt 0:01:00]} (18. Bd3 $1 $15) 18... Rxd4 $17 {[%emt 0:00:38]} 19. Qc2 {[%emt 0:04:07]} Rxd1+ {[%emt 0:00:18]} (19... Qd6 $1 $17 {Hoping for ...Rxd1+.} 20. Be2 f3 21. gxf3 Qf4+ 22. Kb1 Qe5) 20. Kxd1 $11 {[%emt 0:01:00]} Rd8+ {[%emt 0:00:09]} 21. Bd3 {[%emt 0:00:57]} Qd6 {[%emt 0:03:57]} 22. Ke2 {[%emt 0:00:07]} Qe5 {[%emt 0:02:22]} 23. Rd1 {[%emt 0:01:59]} Qh5+ {[%emt 0:01:21]} 24. Ke1 {[%emt 0:03:11]} Qxh2 {[%emt 0:02:41]} 25. Bf1 {[%emt 0:00:22]} (25. e5 $5 {[%cal Rd3h7]} Rf8 26. Be4 $11) 25... Bd4 {[%emt 0:02:10][%cal Of4f3] Strongly threatening ...f3!} 26. Rd3 {[%emt 0:01:04]} Qh6 {[%emt 0:02:10]} 27. Qe2 {[%emt 0:07:11]} e5 {[%emt 0:02:44]} 28. Qg4+ {[%emt 0:01:23]} Qg6 {[%emt 0:02:59]} (28... Kh8 {is more complex.} 29. Ke2 Qc6 30. Qf5 Qg6) 29. Qxg6+ {[%emt 0:01:05]} hxg6 {[%emt 0:00:04][%mdl 4096] Endgame KRB-KRB} 30. Rh3 {[%emt 0:01:44]} Kg7 {[%emt 0:02:49]} 31. Bd3 {[%emt 0:01:02]} g5 {[%emt 0:01:35]} 32. Ke2 {[%emt 0:00:32]} g4 {[%emt 0:01:55]} 33. Rh4 {[%emt 0:05:56]} Bxf2 {[%emt 0:00:14]} 34. Rxg4+ {[%emt 0:00:16]} Kf6 {[%emt 0:00:38]} 35. Bb1 {[%emt 0:03:18]} (35. Kxf2 $11 {remains equal.} Rxd3 36. Rh4) 35... Bg3 $17 {[%emt 0:00:40] Black is more active.} 36. Bd3 {[%emt 0:02:35]} Rh8 {[%emt 0:00:32]} 37. Kd2 {[%emt 0:03:03]} ({Better is} 37. Kf3) 37... Rh1 $1 {[%emt 0:02:40]} 38. Rg8 {[%emt 0:01:31] [#]} Rg1 $1 {[%emt 0:00:15]} 39. Be2 {[%emt 0:00:57]} Rxg2 {[%emt 0:00:24]} 40. Kd3 {[%emt 0:00:14]} Rf2 {[%emt 0:01:34]} 41. Rb8 {[%emt 0:00:46]} Bh4 {[%emt 0:01:55]} 42. Rxb7 $2 {[%emt 0:03:36][%mdl 8192]} (42. Rh8 $17 {was worth a try.} Bg5 43. Rd8) 42... f3 $19 {[%emt 0:00:07]} 43. Bd1 {[%emt 0:00:47]} Rf1 {[%emt 0:01:11]} 44. Rb6+ $2 {[%emt 0:02:58]} (44. Kc2 f2 45. Be2) 44... Kg5 {[%emt 0:00:38]} 45. Kd2 {[%emt 0:00:19]} f2 {[%emt 0:00:50][%cal Of1d1]} 46. Be2 {[%emt 0:00:27]} Re1 {[%emt 0:00:22]} 47. Rb8 {[%emt 0:00:17]} f1=Q {[%emt 0:00:13] Inhibits Rf8.} 48. Rg8+ {[%emt 0:00:09]} Kh6 {[%emt 0:00:34]} 49. Bxf1 {[%emt 0:00:23]} Rxf1 {[%emt 0:00:06] KRB-KR} 50. a3 {[%emt 0:01:15]} (50. Re8 {keeps fighting.}) 50... Bg5+ {[%emt 0:00:58]} 51. Kc3 $2 {[%emt 0:00:23]} (51. Ke2 Rf4 52. Ra8) 51... Rf3+ {[%emt 0:00:04]} 52. Kc2 {[%emt 0:00:11]} Rf2+ {[%emt 0:00:03]} 53. Kc3 {[%emt 0:00:21]} Rf3+ {[%emt 0:00:07]} 54. Kc2 {[%emt 0:00:05]} Re3 {[%emt 0:00:50]} 55. Ra8 {[%emt 0:00:13]} Rxe4 {[%emt 0:00:07]} 56. Rxa6+ {[%emt 0:00:05]} Kg7 {[%emt 0:00:25] White must now prevent ...Re2+.} 57. Rc6 {[%emt 0:00:29]} Be7 {[%emt 0:00:05]} 58. Kd3 {[%emt 0:01:22]} (58. a4 {was the only defense.} Kf7 59. a5) 58... Rd4+ {[%emt 0:00:21]} 59. Ke3 {[%emt 0:00:09]} Kf7 {[%emt 0:00:35]} 60. a4 {[%emt 0:00:10]} e4 {[%emt 0:02:03] ( -> ...Bg5+)} 61. a5 {[%emt 0:00:26]} Rd3+ $2 {[%emt 0:01:02]} (61... Bg5+ {mates} 62. Kf2 e3+ 63. Kf3 Rf4+ 64. Kxe3 Rf6+ 65. Ke4 Rxc6 66. Kd5 Rc8 67. a6 Be7 68. Ke5 Ra8 69. Ke4 Rxa6 70. Kd3 Rb6 71. Ke3 Ke6 72. Ke2 Rxb3 73. Kd2 Kf5 74. Kc1 Ke4 75. Kc2 Rb4 76. Kd2 Rb2+ 77. Kd1 Bf6 78. Ke1 Kf3 79. Kd1 Bg5 80. Ke1 Rb1#) 62. Kxe4 $11 {[%emt 0:00:05]} Rxb3 {[%emt 0:00:06]} 63. Rb6 $2 {[%emt 0:01:43][%mdl 8192] [#]} (63. Ra6 $11) 63... Rxb6 $1 {[%emt 0:00:52] Black mates.} 64. axb6 {[%emt 0:00:02]} Ke6 {[%emt 0:00:16]} 65. b7 {[%emt 0:00:05]} Bd6 {[%emt 0:00:03] Weighted Error Value: White=0.43/Black=0.29 (precise)} 0-1

[Event "1st Bella Italia International 2022"]
[Site "Lignano"]
[Date "2022.08.20"]
[Round "5.15"]
[White "Seres, Bela"]
[Black "Cassi, Elisa"]
[Result "1-0"]
[ECO "C55"]
[WhiteElo "2207"]
[BlackElo "1922"]
[Annotator "TA"]
[PlyCount "103"]
[EventDate "2022.08.18"]
[EventCountry "ITA"]
[SourceTitle "playchess.com"]
[Source "ChessBase"]
[SourceQuality "1"]
[TimeControl "5400+30"]

{[%evp 14,103,-40,-68,-51,-52,-50,-45,-41,-49,-29,-51,-10,-28,0,-2,0,0,19,15,32,14,103,16,26,22,18,10,14,12,22,14,13,9,67,69,77,72,129,11,39,27,64,7,50,16,66,0,7,0,48,45,45,38,71,77,64,78,93,66,115,116,110,117,137,122,462,438,529,516,492,430,1086,1084,1145,1140,1131,1099,890,673,762,760,1066,954,1481,1402,29972,29973,29972,29973,4918,1929]} 1. e4 {[%emt 0:00:05]} e5 {[%emt 0:00:20]} 2. Nf3 {[%emt 0:00:14]} Nc6 {[%emt 0:00:05]} 3. Nc3 {[%emt 0:01:19]} Nf6 {[%emt 0:00:31]} 4. Bc4 {[%emt 0:01:32]} Nxe4 {[%emt 0:09:16]} 5. Nxe4 {[%emt 0:01:07]} d5 {[%emt 0:00:07]} 6. Bxd5 {[%emt 0:00:59]} Qxd5 {[%emt 0:00:07]} 7. Nc3 {[%emt 0:00:34]} Qd8 {[%emt 0:03:07]} 8. h3 {[%emt 0:00:26]} Bc5 {[%emt 0:01:59] C55: Two Knights: 4 d3, 4 d4 exd4 5 e5 and Max Lange Attack.} 9. d3 {[%emt 0:00:24] 9.d3 scores better than 9.0-0.} O-O {[%emt 0:01:49]} 10. Be3 {[%emt 0:00:36]} Bb4 {[%emt 0:09:07] Black is slightly better.} 11. a3 {[%emt 0:00:49]} Be7 {[%emt 0:00:38] [#]} 12. Qd2 $146 {[%emt 0:02:45]} ({Predecessor:} 12. Ne4 f5 13. Nc3 Be6 14. O-O Qd7 15. Qe2 h6 16. d4 e4 17. Ne5 Nxe5 18. dxe5 Qc6 19. f4 {0-1 (37) Berg,T-Wedlock,S London 1999}) 12... f5 {[%emt 0:08:16] Threatens to win with ...f4.} 13. Bg5 {[%emt 0:00:40]} Nd4 {[%emt 0:02:43]} 14. Bxe7 {[%emt 0:00:23]} Qxe7 {[%emt 0:01:32]} 15. O-O-O {[%emt 0:00:32]} Qd6 {[%emt 0:02:45]} 16. Qe3 {[%emt 0:02:54]} Nxf3 {[%emt 0:02:48]} 17. Qxf3 {[%emt 0:02:18]} Bd7 {[%emt 0:01:01]} (17... c6 $11) 18. Qd5+ {[%emt 0:32:50]} (18. Qxb7 $16 {next Qd5+ is good for White.} Kh8 19. f3) 18... Qxd5 $11 {[%emt 0:00:52]} 19. Nxd5 {[%emt 0:00:03]} c6 {[%emt 0:07:47]} 20. Ne3 {[%emt 0:00:38]} Be6 {[%emt 0:05:51]} 21. Rde1 {[%emt 0:02:20]} Kf7 {[%emt 0:02:58]} 22. Re2 {[%emt 0:00:52]} Kf6 {[%emt 0:02:45]} 23. Rhe1 {[%emt 0:00:44]} Rfe8 {[%emt 0:02:56]} (23... Rae8 $1 $11) 24. Nf1 $1 $14 {[%emt 0:06:51]} Bf7 {[%emt 0:05:46]} 25. Nd2 {[%emt 0:00:43]} Re7 {[%emt 0:01:05] [#]} ({Black should play} 25... g5) 26. f3 {[%emt 0:06:17]} (26. f4 $1 $16) 26... Bd5 {[%emt 0:09:40]} 27. h4 {[%emt 0:05:40]} c5 {[%emt 0:04:40]} 28. b3 {[%emt 0:04:19]} (28. g4 $14) 28... b5 {[%emt 0:02:05]} 29. Kb2 {[%emt 0:03:09]} (29. g4 {looks sharper.} Rae8 30. gxf5 Kxf5 31. Kb2) 29... Rb8 {[%emt 0:01:02]} (29... h5 $11) 30. Nf1 {[%emt 0:00:36]} (30. g4 $14) 30... Rbe8 {[%emt 0:03:35]} 31. Ng3 {[%emt 0:02:39]} c4 {[%emt 0:01:06]} (31... Bb7 $11) 32. dxc4 {[%emt 0:01:04]} bxc4 {[%emt 0:00:09]} 33. b4 {[%emt 0:00:14]} g6 {[%emt 0:04:57]} 34. Rd2 {[%emt 0:01:15]} Rd7 {[%emt 0:01:39]} 35. Kc3 {[%emt 0:01:26]} Red8 {[%emt 0:00:40]} 36. Nf1 {[%emt 0:01:36]} f4 {[%emt 0:01:23]} (36... Bc6 $14) 37. Rde2 {[%emt 0:00:23]} Re7 {[%emt 0:00:27]} 38. Nd2 {[%emt 0:00:08]} Kf5 {[%emt 0:00:28]} 39. Ne4 {[%emt 0:00:25] Rd2 is the strong threat.} ({Much weaker is} 39. Nxc4 $6 Rc7 40. Rxe5+ Kf6 $11) 39... h6 $2 {[%emt 0:00:22][%mdl 8192] This move loses the game for Black.} (39... Bc6 $16 40. Kxc4 Rd4+ 41. Kc3 Bb5) 40. Rd2 $18 {[%emt 0:00:27]} Red7 {[%emt 0:01:27]} 41. Nc5 {[%emt 0:00:38]} Rd6 {[%emt 0:00:34] [#]} 42. Red1 $1 {[%emt 0:02:57]} Kf6 {[%emt 0:00:31] [#]} (42... a6 $142 43. Nb7 Bxb7 44. Rxd6 Rxd6 45. Rxd6 e4 46. fxe4+ Bxe4 47. Rxa6 g5) 43. Nb7 $1 {[%emt 0:00:23][%mdl 512]} Bxb7 {[%emt 0:00:23]} (43... Ra6 44. Nxd8) 44. Rxd6+ {[%emt 0:00:02]} Rxd6 {[%emt 0:00:07]} 45. Rxd6+ {[%emt 0:00:19][%mdl 4096] Endgame KR-KB} Kf5 {[%emt 0:00:09]} 46. Kd2 {[%emt 0:01:47]} e4 {[%emt 0:00:10]} 47. Ke2 {[%emt 0:00:21]} h5 {[%emt 0:00:59]} 48. b5 {[%emt 0:00:50] Strongly threatening Rd7.} g5 {[%emt 0:00:23]} 49. Rd7 {[%emt 0:03:02]} exf3+ {[%emt 0:00:11]} 50. gxf3 {[%emt 0:00:03]} Bc8 {[%emt 0:00:22]} 51. Rc7 {[%emt 0:01:08]} Be6 {[%emt 0:00:16]} 52. Rc5+ {[%emt 0:00:12] Weighted Error Value: White=0.22 (precise) /Black=0.55} (52. hxg5 $142 h4 53. Rxa7) 1-0

[Event "1st Bella Italia International 2022"]
[Site "Lignano"]
[Date "2022.08.20"]
[Round "5.16"]
[White "Giraldi, Edoardo"]
[Black "Zuttioni, Federico"]
[Result "0-1"]
[ECO "B05"]
[WhiteElo "1909"]
[BlackElo "2161"]
[Annotator "TA"]
[PlyCount "56"]
[EventDate "2022.08.18"]
[EventCountry "ITA"]
[SourceTitle "playchess.com"]
[Source "ChessBase"]
[SourceQuality "1"]
[TimeControl "5400+30"]

{[%evp 16,56,41,34,72,-35,-30,-20,-28,-41,-14,-22,-13,-14,-14,-20,-7,-10,-12,-25,-29,-56,-69,-83,-62,-70,-71,-67,-79,-83,-84,-57,-82,-126,-118,-115,-37,-41,-26,-37,-25,-792,-772]} 1. e4 {[%emt 0:00:01][%cal Be2e4,Be4e5][%mdl 32]} Nf6 {[%emt 0:19:01]} 2. e5 {[%emt 0:00:11]} Nd5 {[%emt 0:00:22]} 3. d4 {[%emt 0:00:09]} d6 {[%emt 0:00:21]} 4. Nf3 {[%emt 0:00:31]} Bg4 {[%emt 0:00:44]} 5. Be2 {[%emt 0:00:45]} e6 {[%emt 0:00:21]} 6. O-O {[%emt 0:00:47]} Be7 {[%emt 0:00:47]} 7. h3 {[%emt 0:00:49]} Bh5 {[%emt 0:00:47]} 8. c4 {[%emt 0:01:56]} Nb6 {[%emt 0:00:24]} 9. Nc3 {[%emt 0:01:23]} dxe5 {[%emt 0:07:29] B05: Alekhine's Defence: 4 Nf3 Bg4.} 10. dxe5 {[%emt 0:03:10]} ({White has to play} 10. Nxe5 $16 Bxe2 11. Qxe2 (11. Nxe2 N8d7 $14)) 10... Nc6 $15 {[%emt 0:04:32]} 11. g4 {[%emt 0:21:00]} Bg6 {[%emt 0:04:28] [#] The position is equal.} 12. Bf4 $146 {[%emt 0:03:34]} ({Predecessor:} 12. Be3 O-O 13. Nd4 Nxe5 14. b3 Bb4 15. Qd2 Qh4 16. Kh2 Bxc3 17. Qxc3 h5 18. gxh5 Bxh5 19. Bxh5 Qxh5 {1-0 (28) Bazant,Z (1880)-Nyvlt,O (1870) Nachod 2001}) 12... h5 {[%emt 0:05:13]} 13. Qc1 {[%emt 0:11:48]} hxg4 {[%emt 0:19:39]} 14. hxg4 {[%emt 0:03:08]} Bc5 {[%emt 0:02:34] Prevents Qe3. ...Nd4 is the strong threat.} 15. Rd1 {[%emt 0:11:02]} Qe7 {[%emt 0:01:59]} 16. a3 {[%emt 0:08:55] Black must now prevent b4.} a5 {[%emt 0:02:59] Prevents b4.} 17. Nb5 {[%emt 0:12:05]} ({Reject} 17. Be3 Nxe5 18. Nxe5 Qh4 $17) 17... Rc8 {[%emt 0:11:26]} 18. Kg2 {[%emt 0:14:45]} Be4 {[%emt 0:11:30] Strongly threatening ...Qh4.} 19. Rh1 {[%emt 0:02:14] [#] Against Qh4} ({Avoid the trap} 19. Nc3 $2 Qh4 $1 20. Bh6 Qxf2+ 21. Kh3 Bxf3 $19) 19... Rxh1 {[%emt 0:03:23]} ({But not} 19... Rh4 20. Kg3 Rxh1 21. Qxh1 $11) 20. Qxh1 {[%emt 0:00:00]} Nd4 {[%emt 0:00:30]} 21. Qh8+ {[%emt 0:01:43]} Qf8 {[%emt 0:01:27]} 22. Qxf8+ {[%emt 0:00:14]} Kxf8 {[%emt 0:00:02]} 23. Nbxd4 {[%emt 0:00:28]} Bxd4 {[%emt 0:00:03]} 24. Ra2 {[%emt 0:01:15]} a4 {[%emt 0:00:52] Black is more active.} 25. Kg3 {[%emt 0:00:34]} Bc5 {[%emt 0:00:43]} (25... Bxf3 $17 26. Kxf3 Ra8) 26. Ra1 {[%emt 0:00:28]} Rd8 {[%emt 0:00:37]} 27. Rh1 {[%emt 0:00:30]} Kg8 {[%emt 0:00:25] Prevents Rh8+.} 28. Ng5 $2 {[%emt 0:00:32][%mdl 8192]} Bxh1 {[%emt 0:00:13] Weighted Error Value: White=0.49/Black=0.08 (flawless)} 0-1

[Event "1st Bella Italia International 2022"]
[Site "Lignano"]
[Date "2022.08.20"]
[Round "5.17"]
[White "Heredia Serrano, Carla"]
[Black "Arana Garate, Jon"]
[Result "1-0"]
[ECO "B11"]
[WhiteElo "2090"]
[BlackElo "1933"]
[Annotator "NA RC"]
[PlyCount "31"]
[EventDate "2022.08.18"]
[EventCountry "ITA"]
[SourceTitle "playchess.com"]
[Source "ChessBase"]
[SourceQuality "1"]
[TimeControl "5400+30"]

1. e4 {[%emt 0:04:50]} c6 {[%emt 0:00:06]} 2. Nc3 {[%emt 0:00:16]} d5 {[%emt 0:00:32]} 3. Nf3 {[%emt 0:00:04]} dxe4 {[%emt 0:01:07]} 4. Nxe4 {[%emt 0:00:12]} Bf5 {[%emt 0:07:23]} 5. Ng3 {[%emt 0:00:22]} Bg6 {[%emt 0:00:32]} 6. h4 {[%emt 0:00:21]} h6 {[%emt 0:00:46]} 7. Ne5 {[%emt 0:00:12]} Bh7 {[%emt 0:00:32]} 8. Qh5 {[%emt 0:00:26]} Qd5 {[%emt 0:11:27]} 9. Bc4 {[%emt 0:04:00]} Bg6 {[%emt 0:00:14]} 10. Qe2 {[%emt 0:16:11]} Qxg2 {[%emt 0:09:53]} 11. h5 {[%emt 0:00:31]} Bf5 {[%emt 0:16:37]} 12. Nxf7 {[%emt 0:00:47]} b5 {[%emt 0:08:02]} 13. Bb3 {[%emt 0:04:07]} Nf6 {[%emt 0:10:16]} 14. Nd6+ {[%emt 0:00:39]} Kd8 {[%emt 0:01:12]} 15. Ndxf5 {[%emt 0:00:08]} Nd5 {[%emt 0:03:19]} 16. Nh4 {[%emt 0:01:44]} 1-0

[Event "1st Bella Italia International 2022"]
[Site "Lignano"]
[Date "2022.08.20"]
[Round "5.18"]
[White "Olabe Odriozola, Eduardo"]
[Black "Brotto, Alessandro"]
[Result "0-1"]
[ECO "B12"]
[WhiteElo "1946"]
[BlackElo "2027"]
[Annotator "NA RC"]
[PlyCount "46"]
[EventDate "2022.08.18"]
[EventCountry "ITA"]
[SourceTitle "playchess.com"]
[Source "ChessBase"]
[SourceQuality "1"]
[TimeControl "5400+30"]

1. e4 {[%emt 0:00:04]} c6 {[%emt 0:01:46]} 2. d4 {[%emt 0:04:29]} d5 {[%emt 0:01:15]} 3. e5 {[%emt 0:01:19]} Qb6 {[%emt 0:00:14]} 4. c3 {[%emt 0:01:14]} Bf5 {[%emt 0:00:23]} 5. g4 {[%emt 0:01:03]} Bxb1 {[%emt 0:00:40]} 6. Rxb1 {[%emt 0:00:02]} e6 {[%emt 0:01:39]} 7. f4 {[%emt 0:07:33]} c5 {[%emt 0:05:39]} 8. Be3 {[%emt 0:01:20]} Nc6 {[%emt 0:01:55]} 9. Nf3 {[%emt 0:00:16]} f6 {[%emt 0:18:14]} 10. Bg2 {[%emt 0:03:54]} cxd4 {[%emt 0:03:06]} 11. Bxd4 {[%emt 0:02:39]} Nxd4 {[%emt 0:10:53]} 12. cxd4 {[%emt 0:05:55]} Bb4+ {[%emt 0:04:16]} 13. Kf2 {[%emt 0:01:50]} Nh6 {[%emt 0:00:55]} 14. Qa4+ {[%emt 0:03:56]} Kf7 {[%emt 0:02:13]} 15. Bh3 {[%emt 0:02:50]} Rhe8 {[%emt 0:14:05]} 16. Rbc1 {[%emt 0:01:45]} Kg8 {[%emt 0:00:50]} 17. Rc2 {[%emt 0:07:27]} fxe5 {[%emt 0:01:03]} 18. fxe5 {[%emt 0:01:13]} Rf8 {[%emt 0:01:34]} 19. Kg3 {[%emt 0:00:28]} Rxf3+ {[%emt 0:02:01]} 20. Kxf3 {[%emt 0:00:59]} Qxd4 {[%emt 0:00:19]} 21. Qb3 {[%emt 0:05:11]} Rf8+ {[%emt 0:02:10]} 22. Kg2 {[%emt 0:03:33]} Qe4+ {[%emt 0:00:10]} 23. Kg1 {[%emt 0:02:22]} Bc5+ {[%emt 0:01:05]} 0-1